[Event "Early-Titled-Tuesday-Blitz-May-14-2024"]
[Site "Chess.com"]
[Date "2024.05.14"]
[Round "8"]
[White "english_player_89"]
[Black "Quattroporte300"]
[Result "1-0"]
[WhiteElo "2619"]
[BlackElo "2418"]
[TimeControl "180+1"]
[EndTime "9:31:06 PDT"]
[Termination "english_player_89 won on time"]

1. e4 {[%clk 0:03:00.9]} 1... c5 {[%clk 0:03:00.3]} 2. Nf3 {[%clk 0:03:00.9]}
2... e6 {[%clk 0:02:59.8]} 3. g3 {[%clk 0:03:01.2]} 3... Nc6 {[%clk 0:02:58.1]}
4. Bg2 {[%clk 0:03:01.1]} 4... Nf6 {[%clk 0:02:58.6]} 5. Qe2 {[%clk 0:03:01.1]}
5... e5 {[%clk 0:02:54.6]} 6. O-O {[%clk 0:03:01.1]} 6... Be7 {[%clk 0:02:55]}
7. c3 {[%clk 0:03:01.7]} 7... O-O {[%clk 0:02:55]} 8. Rd1 {[%clk 0:03:00.7]}
8... Re8 {[%clk 0:02:54.2]} 9. d4 {[%clk 0:03:00.1]} 9... cxd4 {[%clk
0:02:35.7]} 10. cxd4 {[%clk 0:03:00.1]} 10... exd4 {[%clk 0:02:35.8]} 11. Nxd4
{[%clk 0:02:59.7]} 11... Nxd4 {[%clk 0:02:35.3]} 12. Rxd4 {[%clk 0:02:59.5]}
12... Bc5 {[%clk 0:02:36]} 13. Rc4 {[%clk 0:02:58.8]} 13... Qb6 {[%clk
0:02:32.1]} 14. Nc3 {[%clk 0:02:55.5]} 14... d5 {[%clk 0:02:17.5]} 15. Na4
{[%clk 0:01:57.6]} 15... Bxf2+ {[%clk 0:02:16.6]} 16. Kh1 {[%clk 0:01:58.1]}
16... Qb5 {[%clk 0:01:53.4]} 17. Rc2 {[%clk 0:01:43.1]} 17... Qxe2 {[%clk
0:01:52]} 18. Rxe2 {[%clk 0:01:44]} 18... Nxe4 {[%clk 0:01:26]} 19. Nc3 {[%clk
0:01:28.3]} 19... Bg4 {[%clk 0:01:20]} 20. Nxe4 {[%clk 0:01:27.9]} 20... Bxe2
{[%clk 0:00:49.7]} 21. Nxf2 {[%clk 0:01:26]} 21... Rad8 {[%clk 0:00:44.4]} 22.
Bf4 {[%clk 0:01:11.5]} 22... Re7 {[%clk 0:00:38.9]} 23. Re1 {[%clk 0:00:59.6]}
23... d4 {[%clk 0:00:34.7]} 24. Bd2 {[%clk 0:00:35.4]} 24... d3 {[%clk
0:00:28.6]} 25. Ne4 {[%clk 0:00:30.9]} 25... b6 {[%clk 0:00:25.8]} 26. Kg1
{[%clk 0:00:30]} 26... h6 {[%clk 0:00:21.1]} 27. Bc3 {[%clk 0:00:29.4]} 27... f5
{[%clk 0:00:21.1]} 28. Nd2 {[%clk 0:00:29.1]} 28... Kf7 {[%clk 0:00:20.5]} 29.
Kf2 {[%clk 0:00:29]} 29... g5 {[%clk 0:00:20.9]} 30. a4 {[%clk 0:00:25.4]} 30...
Bh5 {[%clk 0:00:12.3]} 31. Ra1 {[%clk 0:00:20.3]} 31... Re2+ {[%clk 0:00:11.6]}
32. Kf1 {[%clk 0:00:19.5]} 32... Rde8 {[%clk 0:00:11.5]} 33. a5 {[%clk
0:00:17.5]} 33... b5 {[%clk 0:00:09.2]} 34. Bd5+ {[%clk 0:00:15.9]} 34... Kf8
{[%clk 0:00:07]} 35. Nb3 {[%clk 0:00:14.2]} 35... Bf7 {[%clk 0:00:06.2]} 36.
Bxf7 {[%clk 0:00:12.7]} 36... Kxf7 {[%clk 0:00:07.1]} 37. Nd4 {[%clk 0:00:09.9]}
37... Rxh2 {[%clk 0:00:06.7]} 38. Kg1 {[%clk 0:00:10.1]} 38... Rhe2 {[%clk
0:00:01.7]} 39. Nxe2 {[%clk 0:00:09.7]} 39... Rxe2 {[%clk 0:00:01.9]} 40. Rd1
{[%clk 0:00:09.4]} 40... a6 {[%clk 0:00:01.2]} 41. Rxd3 {[%clk 0:00:09.5]} 41...
Ke6 {[%clk 0:00:02]} 42. Kf1 {[%clk 0:00:08.7]} 42... Re4 {[%clk 0:00:01.5]} 43.
Kf2 {[%clk 0:00:07.5]} 43... b4 {[%clk 0:00:01.9]} 44. Bd2 {[%clk 0:00:07.4]}
44... Rg4 {[%clk 0:00:01.6]} 45. Rb3 {[%clk 0:00:06.9]} 45... h5 {[%clk
0:00:02]} 46. Rxb4 {[%clk 0:00:06.6]} 46... f4 {[%clk 0:00:02.1]} 47. gxf4
{[%clk 0:00:06.5]} 47... h4 {[%clk 0:00:02.3]} 48. fxg5 {[%clk 0:00:05.7]} 1-0

[Event "Early-Titled-Tuesday-Blitz-May-14-2024"]
[Site "Chess.com"]
[Date "2024.05.14"]
[Round "8"]
[White "Rodalquilar"]
[Black "Oleksandr_Bortnyk"]
[Result "1-0"]
[WhiteElo "2892"]
[BlackElo "3037"]
[TimeControl "180+1"]
[EndTime "9:31:07 PDT"]
[Termination "Rodalquilar won by checkmate"]

1. d4 {[%clk 0:03:00.9]} 1... Nf6 {[%clk 0:02:59.1]} 2. Nf3 {[%clk 0:03:00.6]}
2... b6 {[%clk 0:02:59.4]} 3. Bf4 {[%clk 0:03:00.4]} 3... Bb7 {[%clk 0:03:00.3]}
4. e3 {[%clk 0:03:00.9]} 4... d6 {[%clk 0:03:00.5]} 5. h3 {[%clk 0:02:59.6]}
5... Nbd7 {[%clk 0:03:00.2]} 6. Nbd2 {[%clk 0:02:54]} 6... e6 {[%clk 0:03:00.2]}
7. a4 {[%clk 0:02:52.7]} 7... a5 {[%clk 0:02:59.7]} 8. Be2 {[%clk 0:02:47.3]}
8... Be7 {[%clk 0:03:00]} 9. O-O {[%clk 0:02:47.1]} 9... h6 {[%clk 0:03:00.1]}
10. c3 {[%clk 0:02:15.5]} 10... g5 {[%clk 0:03:00.4]} 11. Bg3 {[%clk 0:02:13.1]}
11... g4 {[%clk 0:02:59.2]} 12. hxg4 {[%clk 0:02:13.2]} 12... Nxg4 {[%clk
0:03:00.1]} 13. Nh2 {[%clk 0:01:59.6]} 13... h5 {[%clk 0:02:56.3]} 14. Bf3
{[%clk 0:01:54.7]} 14... d5 {[%clk 0:02:50.5]} 15. Bxg4 {[%clk 0:01:37.6]} 15...
hxg4 {[%clk 0:02:51.4]} 16. Nxg4 {[%clk 0:01:36.5]} 16... Bd6 {[%clk 0:02:50.4]}
17. Bxd6 {[%clk 0:01:20.7]} 17... cxd6 {[%clk 0:02:51.3]} 18. g3 {[%clk
0:01:21.3]} 18... Qg5 {[%clk 0:02:48.8]} 19. f4 {[%clk 0:01:01.3]} 19... Qg6
{[%clk 0:02:40.8]} 20. Qf3 {[%clk 0:00:47.3]} 20... f5 {[%clk 0:02:34.7]} 21.
Nf2 {[%clk 0:00:35.6]} 21... O-O-O {[%clk 0:02:34.7]} 22. Kg2 {[%clk 0:00:36]}
22... Nf6 {[%clk 0:02:32.3]} 23. Rh1 {[%clk 0:00:35.7]} 23... Rhg8 {[%clk
0:02:19.1]} 24. Nh3 {[%clk 0:00:34.6]} 24... Nh7 {[%clk 0:02:10.2]} 25. Rag1
{[%clk 0:00:34.7]} 25... Ba6 {[%clk 0:02:09.9]} 26. Nf2 {[%clk 0:00:32]} 26...
Nf6 {[%clk 0:02:05.7]} 27. Nh3 {[%clk 0:00:32]} 27... Ne4 {[%clk 0:01:58.5]} 28.
Nxe4 {[%clk 0:00:24.7]} 28... fxe4 {[%clk 0:01:49.1]} 29. Qf2 {[%clk 0:00:25.2]}
29... Qg4 {[%clk 0:01:36.7]} 30. Ng5 {[%clk 0:00:23.1]} 30... Rdf8 {[%clk
0:01:13.7]} 31. Rh4 {[%clk 0:00:22.2]} 31... Qf5 {[%clk 0:01:13]} 32. g4 {[%clk
0:00:17.4]} 32... Rxg5 {[%clk 0:00:57.5]} 33. Qg3 {[%clk 0:00:18]} 33... Qg6
{[%clk 0:00:45.3]} 34. fxg5 {[%clk 0:00:18]} 34... Kc7 {[%clk 0:00:44]} 35. Rh5
{[%clk 0:00:09.4]} 35... Kc6 {[%clk 0:00:40]} 36. Qh4 {[%clk 0:00:08.5]} 36...
Qf7 {[%clk 0:00:36.8]} 37. Qg3 {[%clk 0:00:08.6]} 37... Qg8 {[%clk 0:00:28.8]}
38. Qh4 {[%clk 0:00:08]} 38... Rf3 {[%clk 0:00:29.1]} 39. Rh6 {[%clk 0:00:08.1]}
39... Rxe3 {[%clk 0:00:27.9]} 40. Rf6 {[%clk 0:00:08.3]} 40... Re2+ {[%clk
0:00:23.5]} 41. Kg3 {[%clk 0:00:08.7]} 41... Rxb2 {[%clk 0:00:20]} 42. g6 {[%clk
0:00:09.1]} 42... Rc2 {[%clk 0:00:18.8]} 43. Kf4 {[%clk 0:00:09.3]} 43... Rxc3
{[%clk 0:00:18.7]} 44. Kg5 {[%clk 0:00:09.5]} 44... Qd8 {[%clk 0:00:11.2]} 45.
Qh7 {[%clk 0:00:03.4]} 45... Rf3 {[%clk 0:00:11.2]} 46. Qf7 {[%clk 0:00:03.7]}
46... e3 {[%clk 0:00:07.5]} 47. g7 {[%clk 0:00:04.1]} 47... e2 {[%clk
0:00:01.4]} 48. g8=Q {[%clk 0:00:04.4]} 48... Qxg8+ {[%clk 0:00:00.8]} 49. Qxg8
{[%clk 0:00:04.8]} 49... Rf1 {[%clk 0:00:01.6]} 50. Rgxf1 {[%clk 0:00:04.4]}
50... exf1=Q {[%clk 0:00:02.5]} 51. Rxf1 {[%clk 0:00:04.6]} 51... Bxf1 {[%clk
0:00:03.4]} 52. Qc8# {[%clk 0:00:04.8]} 1-0

[Event "Early-Titled-Tuesday-Blitz-May-14-2024"]
[Site "Chess.com"]
[Date "2024.05.14"]
[Round "8"]
[White "manitodeplomo"]
[Black "Massakru"]
[Result "0-1"]
[WhiteElo "2562"]
[BlackElo "2421"]
[TimeControl "180+1"]
[EndTime "9:31:09 PDT"]
[Termination "Massakru won by resignation"]

1. d4 {[%clk 0:02:50.3]} 1... Nf6 {[%clk 0:02:59.1]} 2. c4 {[%clk 0:02:46.3]}
2... e6 {[%clk 0:02:59.2]} 3. Nf3 {[%clk 0:02:43.5]} 3... d5 {[%clk 0:02:59.3]}
4. Nc3 {[%clk 0:02:42.9]} 4... c5 {[%clk 0:02:59.3]} 5. Bg5 {[%clk 0:02:39.8]}
5... cxd4 {[%clk 0:02:55.8]} 6. Qxd4 {[%clk 0:02:39.1]} 6... Nc6 {[%clk
0:02:55.7]} 7. Bxf6 {[%clk 0:02:39.2]} 7... gxf6 {[%clk 0:02:53.7]} 8. Qh4
{[%clk 0:02:38.6]} 8... Bb4 {[%clk 0:02:30.6]} 9. e3 {[%clk 0:02:27]} 9... Bxc3+
{[%clk 0:02:24.4]} 10. bxc3 {[%clk 0:02:27.9]} 10... dxc4 {[%clk 0:02:21.9]} 11.
Bxc4 {[%clk 0:02:25.6]} 11... f5 {[%clk 0:02:21.3]} 12. Qh6 {[%clk 0:02:05.6]}
12... Qe7 {[%clk 0:02:08.5]} 13. O-O {[%clk 0:02:03.5]} 13... Bd7 {[%clk
0:02:04.6]} 14. Rfe1 {[%clk 0:01:39.8]} 14... O-O-O {[%clk 0:02:03.8]} 15. e4
{[%clk 0:01:39.3]} 15... fxe4 {[%clk 0:02:00.5]} 16. Rxe4 {[%clk 0:01:40.2]}
16... Rhg8 {[%clk 0:01:50.7]} 17. Qxh7 {[%clk 0:01:32]} 17... Rh8 {[%clk
0:01:32.7]} 18. Qg7 {[%clk 0:01:31.7]} 18... Rdg8 {[%clk 0:01:32.8]} 19. Qxh8
{[%clk 0:01:30.5]} 19... Rxh8 {[%clk 0:01:32.8]} 20. Rae1 {[%clk 0:01:30.9]}
20... Na5 {[%clk 0:01:27.1]} 21. Bf1 {[%clk 0:01:28.3]} 21... Bc6 {[%clk
0:01:26.5]} 22. Rf4 {[%clk 0:01:27.3]} 22... Bxf3 {[%clk 0:01:22.9]} 23. Rxf3
{[%clk 0:01:28.2]} 23... Nc6 {[%clk 0:01:15.8]} 24. g3 {[%clk 0:01:22.2]} 24...
f5 {[%clk 0:01:03.8]} 25. Bc4 {[%clk 0:01:17.4]} 25... Nd8 {[%clk 0:00:58.5]}
26. Rxf5 {[%clk 0:01:11.1]} 26... Rxh2 {[%clk 0:00:27.1]} 27. Bf1 {[%clk
0:00:38.4]} 27... Rh6 {[%clk 0:00:17.4]} 28. Bg2 {[%clk 0:00:35.2]} 28... Qc7
{[%clk 0:00:12.8]} 29. Rf3 {[%clk 0:00:31.3]} 29... a6 {[%clk 0:00:11.1]} 30.
Rfe3 {[%clk 0:00:30.4]} 30... Qd6 {[%clk 0:00:10.9]} 31. a4 {[%clk 0:00:29.7]}
31... Rf6 {[%clk 0:00:10.6]} 32. g4 {[%clk 0:00:28.4]} 32... Rg6 {[%clk
0:00:10.7]} 33. Re4 {[%clk 0:00:28.1]} 33... Rg5 {[%clk 0:00:09.9]} 34. Bf3
{[%clk 0:00:27]} 34... Rc5 {[%clk 0:00:09.5]} 35. R1e3 {[%clk 0:00:26.6]} 35...
Qc7 {[%clk 0:00:08.9]} 36. Kg2 {[%clk 0:00:21]} 36... Rxc3 {[%clk 0:00:09.3]}
37. Rxc3 {[%clk 0:00:21]} 37... Qxc3 {[%clk 0:00:10.2]} 38. g5 {[%clk
0:00:21.2]} 38... Qg7 {[%clk 0:00:10]} 39. Rg4 {[%clk 0:00:21.1]} 39... Nf7
{[%clk 0:00:10.4]} 40. g6 {[%clk 0:00:19.9]} 40... Ne5 {[%clk 0:00:10.6]} 41.
Rg3 {[%clk 0:00:20.5]} 41... Nxf3 {[%clk 0:00:10.7]} 42. Kxf3 {[%clk 0:00:20.2]}
42... Kd7 {[%clk 0:00:10.9]} 43. Ke3 {[%clk 0:00:19.5]} 43... Ke7 {[%clk
0:00:11.1]} 44. a5 {[%clk 0:00:19.7]} 44... Kf6 {[%clk 0:00:11.5]} 45. Kd3
{[%clk 0:00:19.4]} 45... e5 {[%clk 0:00:09.8]} 46. Kc4 {[%clk 0:00:18.3]} 46...
Qc7+ {[%clk 0:00:09.7]} 47. Kb4 {[%clk 0:00:17.5]} 47... Qd6+ {[%clk 0:00:09.4]}
48. Kc3 {[%clk 0:00:16.7]} 48... Qd4+ {[%clk 0:00:09.5]} 49. Kb3 {[%clk
0:00:17]} 49... Kg7 {[%clk 0:00:09.3]} 50. Ka3 {[%clk 0:00:16]} 50... Qxf2
{[%clk 0:00:09.5]} 51. Rb3 {[%clk 0:00:16.1]} 51... Qc5+ {[%clk 0:00:09.4]} 52.
Ka4 {[%clk 0:00:15.9]} 52... Qc4+ {[%clk 0:00:09.7]} 53. Ka3 {[%clk 0:00:15.7]}
53... Qc5+ {[%clk 0:00:09.6]} 54. Ka4 {[%clk 0:00:15.7]} 54... Qc6+ {[%clk
0:00:09.9]} 55. Ka3 {[%clk 0:00:15.8]} 55... Kxg6 {[%clk 0:00:10.4]} 56. Rb6
{[%clk 0:00:14.8]} 56... Qxb6 {[%clk 0:00:10.8]} 57. axb6 {[%clk 0:00:15.7]}
57... Kf5 {[%clk 0:00:11.3]} 0-1

[Event "Early-Titled-Tuesday-Blitz-May-14-2024"]
[Site "Chess.com"]
[Date "2024.05.14"]
[Round "8"]
[White "Der_Balak_3Halak"]
[Black "aloe_normansen"]
[Result "1/2-1/2"]
[WhiteElo "2402"]
[BlackElo "2566"]
[TimeControl "180+1"]
[EndTime "9:31:11 PDT"]
[Termination "Game drawn by repetition"]

1. e4 {[%clk 0:03:00.9]} 1... e5 {[%clk 0:03:00.2]} 2. Nf3 {[%clk 0:02:59.6]}
2... Nc6 {[%clk 0:03:00.9]} 3. Bb5 {[%clk 0:02:59.1]} 3... a6 {[%clk 0:03:01.2]}
4. Bxc6 {[%clk 0:02:59.1]} 4... dxc6 {[%clk 0:03:00.7]} 5. h3 {[%clk 0:02:59.4]}
5... Bd6 {[%clk 0:02:53.6]} 6. O-O {[%clk 0:02:58]} 6... Ne7 {[%clk 0:02:40.1]}
7. c3 {[%clk 0:02:57.9]} 7... O-O {[%clk 0:02:38.9]} 8. d4 {[%clk 0:02:58.8]}
8... Ng6 {[%clk 0:02:39]} 9. dxe5 {[%clk 0:02:50]} 9... Nxe5 {[%clk 0:02:39.9]}
10. Nxe5 {[%clk 0:02:50.4]} 10... Bxe5 {[%clk 0:02:40.8]} 11. Be3 {[%clk
0:02:50.1]} 11... Qe7 {[%clk 0:02:35.4]} 12. Nd2 {[%clk 0:02:48.2]} 12... Bd6
{[%clk 0:02:29.6]} 13. Nc4 {[%clk 0:02:34.7]} 13... Qxe4 {[%clk 0:02:19.6]} 14.
Nxd6 {[%clk 0:02:33.3]} 14... cxd6 {[%clk 0:02:20.5]} 15. Qxd6 {[%clk
0:02:33.5]} 15... Be6 {[%clk 0:02:13.4]} 16. Rad1 {[%clk 0:02:17.6]} 16... Bxa2
{[%clk 0:01:59.7]} 17. Rd4 {[%clk 0:02:05.7]} 17... Qe6 {[%clk 0:01:58.7]} 18.
Qc7 {[%clk 0:01:49.8]} 18... Bd5 {[%clk 0:01:42]} 19. Qxb7 {[%clk 0:01:42]}
19... Rab8 {[%clk 0:01:21.8]} 20. Qxa6 {[%clk 0:01:37.3]} 20... Rxb2 {[%clk
0:01:22.3]} 21. c4 {[%clk 0:01:29.9]} 21... Be4 {[%clk 0:01:19.6]} 22. Qa3
{[%clk 0:01:26.2]} 22... Rc2 {[%clk 0:01:13.5]} 23. Rfd1 {[%clk 0:00:51.6]}
23... Qg6 {[%clk 0:00:50.5]} 24. Qxf8+ {[%clk 0:00:37.6]} 24... Kxf8 {[%clk
0:00:50.2]} 25. Rd8+ {[%clk 0:00:37.2]} 25... Ke7 {[%clk 0:00:50.4]} 26. Bc5+
{[%clk 0:00:31.4]} 26... Ke6 {[%clk 0:00:47.9]} 27. R8d6+ {[%clk 0:00:28.7]}
27... Kf5 {[%clk 0:00:47.3]} 28. g4+ {[%clk 0:00:16.2]} 28... Kf4 {[%clk
0:00:35]} 29. Rxg6 {[%clk 0:00:16.3]} 29... hxg6 {[%clk 0:00:35.1]} 30. Bd6+
{[%clk 0:00:10.3]} 30... Kf3 {[%clk 0:00:33.4]} 31. Bg3 {[%clk 0:00:11]} 31...
Rxc4 {[%clk 0:00:30.4]} 32. Re1 {[%clk 0:00:11.6]} 32... Rc3 {[%clk 0:00:30.7]}
33. Be5 {[%clk 0:00:11.1]} 33... Rb3 {[%clk 0:00:27.2]} 34. Bxg7 {[%clk
0:00:09.4]} 34... c5 {[%clk 0:00:15.3]} 35. Rc1 {[%clk 0:00:09.9]} 35... Rb1
{[%clk 0:00:14.6]} 36. Rxb1 {[%clk 0:00:05.4]} 36... Bxb1 {[%clk 0:00:15.5]} 37.
Bc3 {[%clk 0:00:03.6]} 37... c4 {[%clk 0:00:12.6]} 38. Kf1 {[%clk 0:00:03.6]}
38... Bd3+ {[%clk 0:00:09.8]} 39. Ke1 {[%clk 0:00:04]} 39... f5 {[%clk
0:00:04.8]} 40. gxf5 {[%clk 0:00:03.7]} 40... Bxf5 {[%clk 0:00:05.7]} 41. h4
{[%clk 0:00:03.4]} 41... Kg4 {[%clk 0:00:05.7]} 42. Bf6 {[%clk 0:00:03.7]} 42...
Kf3 {[%clk 0:00:05.1]} 43. Bd4 {[%clk 0:00:02.2]} 43... Bd3 {[%clk 0:00:05.3]}
44. Kd2 {[%clk 0:00:02.1]} 44... Kg4 {[%clk 0:00:05.1]} 45. Bf6 {[%clk
0:00:02.4]} 45... Kf3 {[%clk 0:00:05.4]} 46. Bd4 {[%clk 0:00:02.9]} 46... Ke4
{[%clk 0:00:05.5]} 47. Bf6 {[%clk 0:00:02.9]} 47... Kf3 {[%clk 0:00:05.6]} 48.
Bd4 {[%clk 0:00:02.8]} 1/2-1/2

[Event "Early-Titled-Tuesday-Blitz-May-14-2024"]
[Site "Chess.com"]
[Date "2024.05.14"]
[Round "8"]
[White "Orujov2008"]
[Black "TenisMaster"]
[Result "0-1"]
[WhiteElo "2750"]
[BlackElo "2911"]
[TimeControl "180+1"]
[EndTime "9:31:12 PDT"]
[Termination "TenisMaster won on time"]

1. e4 {[%clk 0:03:00.9]} 1... e5 {[%clk 0:03:00]} 2. Nf3 {[%clk 0:03:00.7]} 2...
Nc6 {[%clk 0:03:00.6]} 3. d4 {[%clk 0:02:59.5]} 3... exd4 {[%clk 0:03:00.4]} 4.
Nxd4 {[%clk 0:02:59.7]} 4... Bc5 {[%clk 0:03:01]} 5. Be3 {[%clk 0:02:54.6]} 5...
Qf6 {[%clk 0:02:59.2]} 6. c3 {[%clk 0:02:52.6]} 6... b6 {[%clk 0:02:58.9]} 7.
Be2 {[%clk 0:02:43.4]} 7... Bb7 {[%clk 0:02:58.9]} 8. O-O {[%clk 0:02:39]} 8...
Nge7 {[%clk 0:02:54.4]} 9. b4 {[%clk 0:02:31.3]} 9... Nxd4 {[%clk 0:02:44.4]}
10. cxd4 {[%clk 0:02:31]} 10... Bxb4 {[%clk 0:02:40.8]} 11. Bf3 {[%clk
0:02:24.1]} 11... Qg6 {[%clk 0:01:54.4]} 12. Nd2 {[%clk 0:02:18.2]} 12... Bxd2
{[%clk 0:01:37.1]} 13. Bxd2 {[%clk 0:02:17.4]} 13... O-O {[%clk 0:01:34.8]} 14.
Qe2 {[%clk 0:02:13.3]} 14... d5 {[%clk 0:01:30.2]} 15. e5 {[%clk 0:02:06.7]}
15... Nf5 {[%clk 0:01:30.4]} 16. Bc3 {[%clk 0:02:05.2]} 16... c5 {[%clk
0:01:29.9]} 17. Rfe1 {[%clk 0:02:00.2]} 17... cxd4 {[%clk 0:01:25.6]} 18. Bb2
{[%clk 0:01:55.8]} 18... Rfe8 {[%clk 0:01:24.2]} 19. Bh5 {[%clk 0:01:51.2]}
19... Qe6 {[%clk 0:01:15.2]} 20. Qf3 {[%clk 0:01:50.2]} 20... Bc8 {[%clk
0:00:48.8]} 21. Rac1 {[%clk 0:01:44.8]} 21... Bd7 {[%clk 0:00:48.8]} 22. Rc7
{[%clk 0:01:36.5]} 22... Rec8 {[%clk 0:00:48.3]} 23. Bxf7+ {[%clk 0:01:27.9]}
23... Kxf7 {[%clk 0:00:33.8]} 24. Rxd7+ {[%clk 0:01:27.3]} 24... Kg8 {[%clk
0:00:27.7]} 25. g4 {[%clk 0:01:23]} 25... Nh4 {[%clk 0:00:24.8]} 26. Rxg7+
{[%clk 0:01:13.2]} 26... Kxg7 {[%clk 0:00:24.7]} 27. Qg3 {[%clk 0:01:13.3]}
27... Rc2 {[%clk 0:00:21.8]} 28. Bxd4 {[%clk 0:01:09.7]} 28... Rc4 {[%clk
0:00:21.9]} 29. Rd1 {[%clk 0:01:05.7]} 29... Ng6 {[%clk 0:00:17.1]} 30. f4
{[%clk 0:01:05.6]} 30... Qe7 {[%clk 0:00:15.5]} 31. f5 {[%clk 0:01:01.4]} 31...
Rxd4 {[%clk 0:00:15.7]} 32. Rxd4 {[%clk 0:00:56.9]} 32... Qxe5 {[%clk
0:00:15.7]} 33. Qf2 {[%clk 0:00:56.9]} 33... Nf8 {[%clk 0:00:13.1]} 34. Qd2
{[%clk 0:00:45.2]} 34... Re8 {[%clk 0:00:12.8]} 35. Rxd5 {[%clk 0:00:39.6]}
35... Qe3+ {[%clk 0:00:12.9]} 36. Qxe3 {[%clk 0:00:39.4]} 36... Rxe3 {[%clk
0:00:13.8]} 37. Kf2 {[%clk 0:00:33.8]} 37... Ra3 {[%clk 0:00:13.3]} 38. Rd8
{[%clk 0:00:32.4]} 38... Kf7 {[%clk 0:00:10.8]} 39. h4 {[%clk 0:00:28.5]} 39...
Rxa2+ {[%clk 0:00:10.7]} 40. Kg3 {[%clk 0:00:27.9]} 40... Ra4 {[%clk 0:00:10.9]}
41. g5 {[%clk 0:00:27.1]} 41... Rc4 {[%clk 0:00:09.8]} 42. Ra8 {[%clk
0:00:18.9]} 42... Rc7 {[%clk 0:00:09.9]} 43. h5 {[%clk 0:00:15]} 43... Rb7
{[%clk 0:00:09.2]} 44. Kf4 {[%clk 0:00:11.5]} 44... b5 {[%clk 0:00:09.5]} 45.
Ke3 {[%clk 0:00:07.3]} 45... b4 {[%clk 0:00:09.1]} 46. Kd2 {[%clk 0:00:08]}
46... b3 {[%clk 0:00:08.3]} 47. Kc1 {[%clk 0:00:08.6]} 47... b2+ {[%clk
0:00:07.8]} 48. Kb1 {[%clk 0:00:08.8]} 48... Nd7 {[%clk 0:00:07.3]} 49. Rh8
{[%clk 0:00:07.7]} 49... Nf8 {[%clk 0:00:06.9]} 50. g6+ {[%clk 0:00:02.3]} 50...
Kg7 {[%clk 0:00:06.7]} 51. h6+ {[%clk 0:00:01.5]} 51... Kxh8 {[%clk 0:00:06.6]}
52. g7+ {[%clk 0:00:02.3]} 52... Kg8 {[%clk 0:00:07.1]} 0-1

[Event "Early-Titled-Tuesday-Blitz-May-14-2024"]
[Site "Chess.com"]
[Date "2024.05.14"]
[Round "8"]
[White "tandaleo"]
[Black "GMSrinath"]
[Result "1-0"]
[WhiteElo "2613"]
[BlackElo "2823"]
[TimeControl "180+1"]
[EndTime "9:31:12 PDT"]
[Termination "tandaleo won on time"]

1. d4 {[%clk 0:03:00.9]} 1... f5 {[%clk 0:02:59.4]} 2. Nc3 {[%clk 0:02:53.9]}
2... Nf6 {[%clk 0:02:59.5]} 3. Bg5 {[%clk 0:02:53.8]} 3... Ne4 {[%clk
0:03:00.1]} 4. Nxe4 {[%clk 0:02:50.7]} 4... fxe4 {[%clk 0:03:01]} 5. e3 {[%clk
0:02:51.3]} 5... d5 {[%clk 0:03:01.4]} 6. c4 {[%clk 0:02:47.6]} 6... c6 {[%clk
0:02:57.6]} 7. Bf4 {[%clk 0:02:43.6]} 7... g6 {[%clk 0:02:32]} 8. Be5 {[%clk
0:02:41.2]} 8... Rg8 {[%clk 0:02:31.2]} 9. cxd5 {[%clk 0:02:29.6]} 9... cxd5
{[%clk 0:02:31.1]} 10. Qa4+ {[%clk 0:02:26.8]} 10... Nc6 {[%clk 0:02:25.3]} 11.
Bb5 {[%clk 0:02:26]} 11... Bd7 {[%clk 0:02:25.9]} 12. Rc1 {[%clk 0:02:25.3]}
12... Nxe5 {[%clk 0:02:06.6]} 13. dxe5 {[%clk 0:02:24.6]} 13... Bg7 {[%clk
0:02:06.2]} 14. e6 {[%clk 0:02:18.6]} 14... Bxb5 {[%clk 0:02:05.2]} 15. Qxb5+
{[%clk 0:02:19]} 15... Kf8 {[%clk 0:02:06.1]} 16. Ne2 {[%clk 0:02:08.5]} 16...
a6 {[%clk 0:01:47.1]} 17. Qxb7 {[%clk 0:01:59.6]} 17... Rb8 {[%clk 0:01:44.3]}
18. Qxa6 {[%clk 0:01:59.7]} 18... Bxb2 {[%clk 0:01:43.9]} 19. Rb1 {[%clk
0:01:51.2]} 19... Be5 {[%clk 0:01:28.7]} 20. O-O {[%clk 0:01:47.9]} 20... Kg7
{[%clk 0:01:26.5]} 21. g3 {[%clk 0:01:01.6]} 21... Qc7 {[%clk 0:01:18]} 22. Rfc1
{[%clk 0:00:52.1]} 22... Rxb1 {[%clk 0:01:08.4]} 23. Rxb1 {[%clk 0:00:53]} 23...
Qc2 {[%clk 0:01:08.5]} 24. Rb7 {[%clk 0:00:52.5]} 24... Bf6 {[%clk 0:01:08.4]}
25. Nf4 {[%clk 0:00:45.1]} 25... Rd8 {[%clk 0:01:03.1]} 26. Kg2 {[%clk
0:00:36.7]} 26... d4 {[%clk 0:01:00.6]} 27. exd4 {[%clk 0:00:30]} 27... e3
{[%clk 0:01:00.7]} 28. Qe2 {[%clk 0:00:30.4]} 28... Qe4+ {[%clk 0:00:40.5]} 29.
Qf3 {[%clk 0:00:29]} 29... Qxd4 {[%clk 0:00:36.5]} 30. Qxe3 {[%clk 0:00:26.6]}
30... Qd1 {[%clk 0:00:30.8]} 31. Qf3 {[%clk 0:00:24.2]} 31... Qd2 {[%clk
0:00:27.4]} 32. a4 {[%clk 0:00:22.5]} 32... Rd4 {[%clk 0:00:26.2]} 33. Ra7
{[%clk 0:00:16.9]} 33... Rd6 {[%clk 0:00:19.5]} 34. a5 {[%clk 0:00:15.3]} 34...
Qd4 {[%clk 0:00:20.1]} 35. Rb7 {[%clk 0:00:13.7]} 35... Qc4 {[%clk 0:00:19.7]}
36. a6 {[%clk 0:00:13.1]} 36... Qxa6 {[%clk 0:00:19.1]} 37. Rd7 {[%clk
0:00:10.4]} 37... Qb6 {[%clk 0:00:15.9]} 38. Rxd6 {[%clk 0:00:08]} 38... Qxd6
{[%clk 0:00:16.8]} 39. Qe4 {[%clk 0:00:08.5]} 39... Be5 {[%clk 0:00:16]} 40. Nd3
{[%clk 0:00:07.2]} 40... Bd4 {[%clk 0:00:15.1]} 41. h4 {[%clk 0:00:07.4]} 41...
Bf6 {[%clk 0:00:12.1]} 42. h5 {[%clk 0:00:06.6]} 42... g5 {[%clk 0:00:11.1]} 43.
Ne1 {[%clk 0:00:04.9]} 43... Qd1 {[%clk 0:00:09.9]} 44. Nf3 {[%clk 0:00:05.1]}
44... Qd6 {[%clk 0:00:07.1]} 45. Nh2 {[%clk 0:00:05.3]} 45... Qd2 {[%clk
0:00:04.2]} 46. Ng4 {[%clk 0:00:05.7]} 46... Bd4 {[%clk 0:00:04.9]} 47. Qf5
{[%clk 0:00:04.6]} 47... Bf6 {[%clk 0:00:03.5]} 48. h6+ {[%clk 0:00:04.3]} 48...
Kh8 {[%clk 0:00:02.3]} 49. Nxf6 {[%clk 0:00:04]} 1-0